{"text_format":"1","workbook":"xlsx","n_sheets":1,"sheets":["Area"],"not_rendered":{"charts":0,"images":5,"macros":1,"external_links":0,"defined_names":2,"comments":0,"pivot_tables":0},"unopened":[],"bounds":{"document_bytes":16777216,"sheet_cells":100000,"rows_first":2000,"rows_last":500,"rows_between":2000,"halvings":0,"cell_chars":16384,"cell_head_chars":4096},"cells_cut":0,"cells_raw":0,"read":"whole","date_system":"1900"}

{"sheet":"Area","index":0,"n_rows":61,"n_cols":55,"rows_kept":61,"cut":false,"hidden":false,"merged":[[26,18,26,20],[30,32,30,35],[23,43,23,44],[27,36,27,37],[1,1,4,47],[12,29,12,30],[13,29,13,45],[8,46,8,47],[12,18,12,20],[16,32,16,35],[35,43,37,44],[40,42,40,44],[41,31,41,40],[37,34,38,35],[39,36,39,39],[57,19,57,22],[49,28,50,29],[53,31,53,40],[54,20,54,22],[40,18,40,20],[43,19,43,22]]}
[]
[null,"N5 Lifeskills - Problem Solving Area                                                                                                                                                                   Created by Mr.Lafferty@mathsrevision.com                                                                                                                                                                                                                                               "]
[]
[]
[]
[]
[null,{"$f":"\"Q1.   Hannah want to wallpaper one wall in her livingroom.\"","v":"Q1.   Hannah want to wallpaper one wall in her livingroom."}]
[]
[null,null,{"$f":"\" 1 roll of wallpaper measures \"&BA17&\" in length and \"&BA14&\" in width.\"","v":" 1 roll of wallpaper measures 6m in length and 60cm in width."},null,null,null,null,null,null,null,null,null,null,null,null,null,null,null,null,null,null,null,null,null,null,null,null,null,null,null,null,null,null,null,null,null,null,null,null,null,null,null,null,null,null,null,{"$f":"BA16","v":"4m"}]
[]
[null,null,{"$f":"\"(a)  Work out how many rolls of wallpaper she will need.\"","v":"(a)  Work out how many rolls of wallpaper she will need."},null,null,null,null,null,null,null,null,null,null,null,null,null,null,null,null,null,null,null,null,null,null,null,null,null,null,null,null,null,null,null,null,null,null,null,null,null,null,null,null,null,null,null,null,null,null,null,null,{"$f":"ROUND(RAND()*(4-3)+3,0)","v":4},"height length"]
[null,null,null,null,null,null,null,null,null,null,null,null,null,null,null,null,null,null,null,null,null,null,null,null,null,null,null,null,null,null,null,null,null,null,null,null,null,null,null,null,null,null,null,null,null,null,null,null,null,null,null,{"$f":"AZ11*2+1","v":9},"length of room"]
[null,null,null,null,null,null,null,null,null,null,null,null,null,null,null,null,null,null,null,null,null,"rolls",null,null,null,null,null,null,null,{"$f":"BA14","v":"60cm"},null,null,null,null,null,null,null,null,null,null,null,null,null,null,null,null,null,null,null,null,null,{"$f":"ROUND(RAND()*(10-4)+4,0)","v":6},"wallpaper length"]
[null,null,null,null,null,null,null,null,null,null,null,null,null,null,null,null,null,null,null,null,null,null,null,null,null,null,null,null,null,{"$f":"BA15","v":"9m"},null,null,null,null,null,null,null,null,null,null,null,null,null,null,null,null,null,null,null,null,null,{"$f":"ROUND(RAND()*(8-4)+4,0)*10","v":60},{"$f":"CONCATENATE(AZ14,\"cm\")","v":"60cm"}]
[null,null,null,null,null,null,null,null,null,null,null,null,null,null,null,null,null,null,null,null,null,null,null,null,null,null,null,null,null,null,null,null,null,null,null,null,null,null,null,null,null,null,null,null,null,null,null,null,null,null,null,{"$f":"ROUNDDOWN(AZ13/AZ11,0)","v":1},{"$f":"CONCATENATE(AZ12,\"m\")","v":"9m"}]
[null,null,{"$f":"\"(b)  Given one roll of wallpaper cost £\"&TEXT(AZ18,\"0.00\")&\" calculate her total cost for the wallpaper.\"","v":"(b)  Given one roll of wallpaper cost £14.50 calculate her total cost for the wallpaper."},null,null,null,null,null,null,null,null,null,null,null,null,null,null,null,null,null,null,null,null,null,null,null,null,null,null,null,null,null,null,null,null,null,null,null,null,null,null,null,null,null,null,null,null,null,null,null,null,{"$f":"ROUNDUP(AZ12*100/AZ14,0)","v":15},{"$f":"CONCATENATE(AZ11,\"m\")","v":"4m"}]
[null,null,null,null,null,null,null,null,null,null,null,null,null,null,null,null,null,null,null,null,null,null,null,null,null,null,null,null,null,null,null,"£",null,null,null,null,null,null,null,null,null,null,null,null,null,null,null,null,null,null,null,{"$f":"ROUNDUP(AZ16/AZ15,0)","v":15},{"$f":"CONCATENATE(AZ13,\"m\")","v":"6m"}]
[null,null,null,null,null,null,null,null,null,null,null,null,null,null,null,null,null,null,null,null,null,null,null,null,null,null,null,null,null,null,null,null,null,null,null,null,null,null,null,null,null,null,null,null,null,null,null,null,null,null,null,{"$f":"ROUND(RAND()*(15-8)+8,1)","v":14.5}]
[null,null,null,null,null,null,null,null,null,null,null,null,null,null,null,null,null,null,null,null,null,null,null,null,null,null,null,null,null,null,null,null,null,null,null,null,null,null,null,null,null,null,null,null,null,null,null,null,null,null,null,{"$f":"ROUND(AZ17*AZ18,2)","v":217.5}]
[]
[null,{"$f":"\"Q2.   Alistair the tiler has got a job to tile a bathroom wall.\"","v":"Q2.   Alistair the tiler has got a job to tile a bathroom wall."},null,null,null,null,null,null,null,null,null,null,null,null,null,null,null,null,null,null,null,null,null,null,null,null,null,null,null,null,null,null,null,null,null,null,null,null,null,null,null,null,null,null,null,null,null,null,null,null,null,{"$f":"ROUND(RAND()*(5-3)+3,0)","v":4},{"$f":"CONCATENATE(AZ21,\"m\")","v":"4m"}]
[null,null,null,null,null,null,null,null,null,null,null,null,null,null,null,null,null,null,null,null,null,null,null,null,null,null,null,null,null,null,null,null,null,null,null,null,null,null,null,null,null,null,null,null,null,null,null,null,null,null,null,{"$f":"AZ21+1","v":5}]
[null,null,{"$f":"\"He uses square tiles that have sides \"&BA23&\".\"","v":"He uses square tiles that have sides 60cm."},null,null,null,null,null,null,null,null,null,null,null,null,null,null,null,null,null,null,null,null,null,null,null,null,null,null,null,null,null,null,null,null,null,null,null,null,null,null,null,null,null,null,null,null,null,null,null,null,{"$f":"ROUND(RAND()*(8-4)+4,0)*10","v":60},{"$f":"CONCATENATE(AZ23,\"cm\")","v":"60cm"}]
[null,null,null,null,null,null,null,null,null,null,null,null,null,null,null,null,null,null,null,null,null,null,null,null,null,null,null,null,null,null,null,null,null,null,null,null,null,null,null,null,null,null,null,{"$f":"BB25","v":"2.4m"}]
[null,null,{"$f":"\"(a)  Work out how many tiles he need to cover the whole wall.\"","v":"(a)  Work out how many tiles he need to cover the whole wall."},null,null,null,null,null,null,null,null,null,null,null,null,null,null,null,null,null,null,null,null,null,null,null,null,null,null,null,null,null,null,null,null,null,null,null,null,null,null,null,null,null,null,null,null,null,null,null,null,{"$f":"AZ21*AZ23","v":240},{"$f":"AZ25/100","v":2.4},{"$f":"CONCATENATE(BA25,\"m\")","v":"2.4m"},"height length"]
[null,null,null,null,null,null,null,null,null,null,null,null,null,null,null,null,null,null,null,null,null,null,null,null,null,null,null,null,null,null,null,null,null,null,null,null,null,null,null,null,null,null,null,null,null,null,null,null,null,null,null,{"$f":"AZ22*AZ23","v":300},{"$f":"AZ26/100","v":3},{"$f":"CONCATENATE(BA26,\"m\")","v":"3m"},"length of room"]
[null,null,null,null,null,null,null,null,null,null,null,null,null,null,null,null,null,null,null,null,null,"rolls"]
[null,null,null,null,null,null,null,null,null,null,null,null,null,null,null,null,null,null,null,null,null,null,null,null,null,null,null,null,null,null,null,null,null,null,null,null,{"$f":"BB26","v":"3m"}]
[null,null,null,null,null,null,null,null,null,null,null,null,null,null,null,null,null,null,null,null,null,null,null,null,null,null,null,null,null,null,null,null,null,null,null,null,null,null,null,null,null,null,null,null,null,null,null,null,null,null,null,{"$f":"AZ22*AZ21","v":20}]
[null,null,{"$f":"\"(b)  Given one roll of wallpaper cost £\"&TEXT(AZ32,\"0.00\")&\" calculate her total cost for the wallpaper.\"","v":"(b)  Given one roll of wallpaper cost £8.80 calculate her total cost for the wallpaper."}]
[null,null,null,null,null,null,null,null,null,null,null,null,null,null,null,null,null,null,null,null,null,null,null,null,null,null,null,null,null,null,null,"£"]
[null,null,null,null,null,null,null,null,null,null,null,null,null,null,null,null,null,null,null,null,null,null,null,null,null,null,null,null,null,null,null,null,null,null,null,null,null,null,null,null,null,null,null,null,null,null,null,null,null,null,null,{"$f":"ROUND(RAND()*(15-8)+8,1)","v":8.8000000000000007}]
[null,null,null,null,null,null,null,null,null,null,null,null,null,null,null,null,null,null,null,null,null,null,null,null,null,null,null,null,null,null,null,null,null,null,null,null,null,null,null,null,null,null,null,null,null,null,null,null,null,null,null,{"$f":"AZ29*AZ32","v":176}]
[null,null,null,null,null,null,null,null,null,null,null,null,null,null,null,null,null,null,null,null,null,null,null,null,null,null,null,null,null,null,null,null,null,null,null,null,null,null,null,null,null,null,null,null,null,null,null,null,null,null,null,{"$f":"ROUND(RAND()*(2-1.5)+1.5,1)","v":1.7},{"$f":"CONCATENATE(AZ34,\"m\")","v":"1.7m"}]
[null,{"$f":"\"Q3.   Kyle is going to paint the outside walls of his tool shed. The shed has a window.\"","v":"Q3.   Kyle is going to paint the outside walls of his tool shed. The shed has a window."},null,null,null,null,null,null,null,null,null,null,null,null,null,null,null,null,null,null,null,null,null,null,null,null,null,null,null,null,null,null,null,null,null,null,null,null,null,null,null,null,null,null,null,null,null,null,null,null,null,{"$f":"ROUND(RAND()*(8-5)+5,0)*0.5","v":4},{"$f":"CONCATENATE(AZ35,\"m\")","v":"4m"}]
[null,null,null,{"$f":"\"The shed is in the shape of a cuboid.\"","v":"The shed is in the shape of a cuboid."},null,null,null,null,null,null,null,null,null,null,null,null,null,null,null,null,null,null,null,null,null,null,null,null,null,null,null,null,null,null,null,null,null,null,null,null,null,null,null,{"$f":"BA35","v":"4m"},null,null,null,null,null,null,null,{"$f":"AZ35-ROUND(RAND()*(1-0.5)+0.5,1)","v":3.1},{"$f":"CONCATENATE(AZ36,\"m\")","v":"3.1m"}]
[null,null,null,null,null,null,null,null,null,null,null,null,null,null,null,null,null,null,null,null,null,null,null,null,null,null,null,null,null,null,null,null,null,null,null,null,null,null,null,null,null,null,null,null,null,null,null,null,null,null,null,{"$f":"AZ36+ROUND(RAND()*(2-1.2)+1.2,1)","v":4.5999999999999996},"4.6m"]
[null,null,null,{"$f":"\" 1 litre of paint covers an area of \"&AZ42&\" square metres and costs £\"&TEXT(AZ46,\"0.00\")&\".\"","v":" 1 litre of paint covers an area of 13 square metres and costs £12.50."},null,null,null,null,null,null,null,null,null,null,null,null,null,null,null,null,null,null,null,null,null,null,null,null,null,null,null,null,null,null,"1m",null,null,null,null,null,null,null,null,null,null,null,null,null,null,null,null,{"$f":"2*AZ35*AZ36","v":24.8}]
[null,null,null,null,null,null,null,null,null,null,null,null,null,null,null,null,null,null,null,null,null,null,null,null,null,null,null,null,null,null,null,null,null,null,null,null,null,null,null,null,null,null,null,null,null,null,null,null,null,null,null,{"$f":"2*AZ37*AZ35-(1*AZ34)","v":35.099999999999994}]
[null,null,null,null,null,null,null,null,null,null,null,null,null,null,null,null,null,null,null,null,null,null,null,null,null,null,null,null,null,null,null,null,null,null,null,null,{"$f":"BA34","v":"1.7m"}]
[null,null,{"$f":"\"(a)   How many tins of paint will Kyle need ?\"","v":"(a)   How many tins of paint will Kyle need ?"},null,null,null,null,null,null,null,null,null,null,null,null,null,null,null,null,null,null,"tins",null,null,null,null,null,null,null,null,null,null,null,null,null,null,null,null,null,null,null,null,{"$f":"BA36","v":"3.1m"}]
[null,null,null,null,null,null,null,null,null,null,null,null,null,null,null,null,null,null,null,null,null,null,null,null,null,null,null,null,null,null,null,{"$f":"BA37","v":"4.6m"},null,null,null,null,null,null,null,null,null,null,null,null,null,null,null,null,null,null,null,{"$f":"ROUND(RAND()*(15-7)+7,0)","v":13},"coverage"]
[null,null,null,null,null,null,null,null,null,null,null,null,null,null,null,null,null,null,null,null,null,null,null,null,null,null,null,null,null,null,null,null,null,null,null,null,null,null,null,null,null,null,null,null,null,null,null,null,null,null,null,{"$f":"AZ38+AZ39","v":59.899999999999991},"Area needed"]
[null,null,{"$f":"\"(b)  Calculate the total cost of the paint needed.\"","v":"(b)  Calculate the total cost of the paint needed."},null,null,null,null,null,null,null,null,null,null,null,null,null,null,null,"£",null,null,null,null,null,null,null,null,null,null,null,null,null,null,null,null,null,null,null,null,null,null,null,null,null,null,null,null,null,null,null,null,{"$f":"AZ43/AZ42","v":4.6076923076923073}]
[null,null,null,null,null,null,null,null,null,null,null,null,null,null,null,null,null,null,null,null,null,null,null,null,null,null,null,null,null,null,null,null,null,null,null,null,null,null,null,null,null,null,null,null,null,null,null,null,null,null,null,{"$f":"ROUNDUP(AZ44,0)","v":5},"tins"]
[null,null,null,null,null,null,null,null,null,null,null,null,null,null,null,null,null,null,null,null,null,null,null,null,null,null,null,null,null,null,null,null,null,null,null,null,null,null,null,null,null,null,null,null,null,null,null,null,null,null,null,{"$f":"ROUND(RAND()*(19.9-9.9)+9.9,1)","v":12.5}]
[null,null,null,null,null,null,null,null,null,null,null,null,null,null,null,null,null,null,null,null,null,null,null,null,null,null,null,null,null,null,null,null,null,null,null,null,null,null,null,null,null,null,null,null,null,null,null,null,null,null,null,{"$f":"AZ45*AZ46","v":62.5}]
[null,null,null,null,null,null,null,null,null,null,null,null,null,null,null,null,null,null,null,null,null,null,null,null,null,null,null,null,null,null,null,null,null,null,null,null,null,null,null,null,null,null,null,null,null,null,null,null,null,null,null,{"$f":"ROUND(RAND()*(15-8)+8,0)","v":12},{"$f":"CONCATENATE(AZ48,\"m\")","v":"12m"}]
[null,{"$f":"\"Q4.   Mr Lafferty is going to returf his lawn.\"","v":"Q4.   Mr Lafferty is going to returf his lawn."},null,null,null,null,null,null,null,null,null,null,null,null,null,null,null,null,null,null,null,null,null,null,null,null,null,null,null,null,null,null,null,null,null,null,null,null,null,null,null,null,null,null,null,null,null,null,null,null,null,{"$f":"ROUND(AZ48 +AZ48*1.6,0)","v":31},{"$f":"CONCATENATE(AZ49,\"m\")","v":"31m"}]
[null,null,"   The lawn is in the shape of a square and a triangle.",null,null,null,null,null,null,null,null,null,null,null,null,null,null,null,null,null,null,null,null,null,null,null,null,null,{"$f":"BA48","v":"12m"}]
[]
[null,null,{"$f":"\" The turf comes in rolls which cover an area of \"&AY55&\" square metres and cost £\"&TEXT(AY57,\"0.00\")&\".\"","v":" The turf comes in rolls which cover an area of 5 square metres and cost £3.40."}]
[]
[null,null,null,null,null,null,null,null,null,null,null,null,null,null,null,null,null,null,null,null,null,null,null,null,null,null,null,null,null,null,null,{"$f":"BA49","v":"31m"}]
[null,null,{"$f":"\"(a)   How many \"&AZ55&\" square metres of turf will he need ?\"","v":"(a)   How many 5 square metres of turf will he need ?"},null,null,null,null,null,null,null,null,null,null,null,null,null,null,null,null,null,null,null,null,"rolls",null,null,null,null,null,null,null,null,null,null,null,null,null,null,null,null,null,null,null,null,null,null,null,null,null,null,null,{"$f":"ROUND(RAND()*(10-3)+3,0)","v":5}]
[null,null,null,null,null,null,null,null,null,null,null,null,null,null,null,null,null,null,null,null,null,null,null,null,null,null,null,null,null,null,null,null,null,null,null,null,null,null,null,null,null,null,null,null,null,null,null,null,null,null,null,{"$f":"AZ48*AZ48+0.5*(AZ49-AZ48)*AZ48","v":258},"coverage"]
[null,null,null,null,null,null,null,null,null,null,null,null,null,null,null,null,null,null,null,null,null,null,null,null,null,null,null,null,null,null,null,null,null,null,null,null,null,null,null,null,null,null,null,null,null,null,null,null,null,null,null,{"$f":"ROUND(RAND()*(4.5-2.5)+2.5,1)","v":3.4},"cost"]
[null,null,{"$f":"\"(b)  Calculate the total cost of the turf needed.\"","v":"(b)  Calculate the total cost of the turf needed."},null,null,null,null,null,null,null,null,null,null,null,null,null,null,null,"£",null,null,null,null,null,null,null,null,null,null,null,null,null,null,null,null,null,null,null,null,null,null,null,null,null,null,null,null,null,null,null,null,{"$f":"ROUNDUP(AZ56/AZ55,0)","v":52}]
[]
[]
[null,null,null,null,null,null,null,null,null,null,null,null,null,null,null,null,null,null,null,null,null,null,null,null,null,null,null,null,null,null,null,null,null,null,null,null,null,null,null,null,null,null,null,null,null,null,null,null,null,null,null,{"$f":"AZ58*AZ57","v":176.79999999999998}]